bitfinex-derivatives/quotes_ETHF0:USTF0_20250926
["timestamp","ask_amount","ask_price","bid_price","bid_amount"]
[1758846972222,0.76811883,3891.7,3891.6,0.7675]
[1758846972420,0.98801883,3891.7,3891.4,0.3418]
[1758846972619,0.4308,3891.5,3891.4,0.7675]
[1758846972815,0.4622,3892.1,3891.3,0.214]
[1758846972816,0.2109,3892.1,3892.0,0.3418]
[1758846973028,0.76758401,3892.1,3892.0,0.9003]
[1758846973225,0.0256,3892.4,3892.3,0.2146]
[1758846973426,0.79257745,3892.4,3892.3,0.7675]
[1758846974029,0.2365,3892.4,3892.3,0.7675]
[1758846974226,0.4308,3891.7,3891.6,0.2146]
[1758846974528,0.46218,3892.2,3891.4,1.0335]
[1758846974830,0.2109,3892.1,3892.0,0.9003]
[1758846975024,0.7674,3892.1,3891.6,0.3418]
[1758846975225,0.4308,3891.7,3891.6,0.3418]
[1758846975427,0.7674,3891.7,3891.6,0.3418]
[1758846975626,0.7674,3891.7,3891.6,0.5564]
[1758846975830,0.3366,3891.7,3891.6,0.3418]
[1758846976332,0.3366,3891.9,3891.6,0.3418]
[1758846976629,0.79878,3892.3,3891.6,0.3418]
[1758846976932,0.89582257,3892.2,3891.6,0.3418]
[1758846977132,0.46222,3892.0,3891.5,0.1328]
[1758846977428,0.3366,3891.9,3891.7,0.3418]
[1758846977622,0.46219,3892.2,3891.6,0.3418]
[1758846977824,0.79879,3892.2,3891.6,0.3418]
[1758846978929,0.79879,3892.2,3891.5,0.3988]
[1758846978930,0.4308,3891.8,3891.7,0.5564]
[1758846979436,0.4308,3891.8,3891.7,0.7675]
[1758846980024,0.0256,3892.4,3891.7,0.7675]
[1758846980230,0.7726588,3892.3,3892.2,0.7675]
[1758846980534,0.4308,3892.4,3892.1,0.3418]
[1758846980734,0.4308,3892.2,3892.1,0.5564]
[1758846981230,0.46212,3892.8,3892.2,0.3418]
[1758846981430,0.99248901,3892.7,3892.6,0.5564]
[1758846981821,0.4308,3892.7,3892.6,0.5564]
[1758846983138,0.4308,3892.7,3892.6,0.7675]
[1758846984027,0.0256,3893.3,3892.7,0.3418]
[1758846984225,0.46208,3893.1,3892.6,0.3418]
[1758846984433,0.99227578,3893.0,3892.9,0.5564]
[1758846984625,0.99227578,3893.0,3892.9,0.7675]
[1758846984626,0.77237578,3893.0,3892.9,0.7675]
[1758846984837,0.2109,3893.0,3892.9,0.7675]
[1758846985226,0.2365,3893.3,3893.2,0.7675]
[1758846986139,0.0256,3893.3,3893.2,0.7675]
[1758846986325,0.3366,3893.7,3893.2,0.4257]
[1758846986532,0.7986,3893.8,3893.3,0.7675]
[1758846986727,0.5610131,3893.7,3893.6,0.7675]
[1758846986927,0.46195,3894.2,3893.7,0.3418]
[1758846987133,0.991757,3894.1,3894.0,0.9003]
[1758846987329,0.2109,3894.1,3894.0,0.9003]
[1758846987534,0.46191,3894.6,3894.0,0.9003]
[1758846987734,0.56080115,3894.5,3894.4,0.7675]
[1758846987939,0.77170115,3894.5,3894.4,0.7675]
[1758846988337,0.2109,3894.5,3894.4,0.7675]
[1758846988536,0.3366,3895.4,3894.5,0.4746]
[1758846988737,0.56041741,3895.3,3894.6,0.3418]
[1758846988929,0.56041741,3895.2,3895.1,0.7675]
[1758846989134,0.2455,3895.3,3895.2,0.5564]
[1758846989331,0.4564,3895.3,3895.2,0.5564]
[1758846989538,0.2109,3894.8,3894.7,0.8224]
[1758846989841,0.2109,3894.8,3894.7,1.0335]
[1758846990443,0.3366,3895.2,3894.7,1.0335]
[1758846990635,0.3366,3895.2,3894.7,0.266]
[1758846990835,0.3366,3895.2,3894.8,0.3234]
[1758846991146,0.0256,3895.3,3895.2,0.3234]
[1758846991344,0.0256,3895.3,3895.2,0.7684]
[1758846993037,0.46179,3895.6,3895.3,0.3234]
[1758846993243,0.90199,3895.6,3895.5,0.5443]
[1758846994151,0.77886462,3895.6,3895.5,0.8949]
[1758846994448,0.99876462,3895.6,3895.5,0.8949]
[1758846995032,0.55856462,3895.6,3895.5,0.8949]
[1758846996645,0.55856462,3895.6,3895.5,1.1609]
[1758846996846,0.46168,3896.5,3895.7,0.3234]
[1758846997043,0.2459,3896.2,3896.1,0.7684]
[1758846997554,0.80460212,3896.2,3896.1,0.7684]
[1758846998043,0.58430212,3896.2,3896.1,0.7684]
[1758846998550,0.80460212,3896.2,3896.1,0.7684]
[1758846998742,0.58430212,3896.2,3896.1,0.7684]
[1758846998943,0.0256,3896.2,3896.1,0.7684]
[1758846999445,0.58425409,3896.2,3896.1,0.7684]
[1758846999843,0.0256,3896.2,3896.1,0.7684]
[1758847001346,0.46162,3897.0,3896.1,0.7684]
[1758847001347,0.4402,3896.7,3896.6,0.5443]
[1758847001549,0.99862031,3896.7,3896.6,0.7684]
[1758847001742,0.77872031,3896.7,3896.6,0.7684]
[1758847001937,0.55842031,3896.7,3896.6,0.7684]
[1758847002153,0.46159,3897.3,3896.7,0.3234]
[1758847002458,0.77856946,3897.2,3897.1,0.7684]
[1758847002644,0.55826946,3897.2,3897.1,0.7684]
[1758847002950,0.77856946,3897.2,3897.1,0.7684]
[1758847003153,0.77856946,3897.2,3896.5,0.3925]
[1758847003154,0.2203,3896.7,3896.6,0.5443]
[1758847003448,0.99846946,3896.7,3896.6,0.3234]
[1758847003658,1.33976946,3896.7,3896.6,0.5443]
[1758847003839,0.55826946,3896.7,3896.6,0.7684]
[1758847004146,0.1198,3897.5,3897.2,0.2209]
[1758847004147,0.46159,3897.3,3897.2,0.2209]
[1758847004352,1.45969402,3897.3,3897.2,0.7684]
[1758847005146,0.77820402,3897.3,3897.2,0.7684]
[1758847006553,0.2203,3897.3,3897.2,0.7684]
[1758847007252,0.76854492,3897.3,3897.2,0.7684]
[1758847007448,0.7685444,3897.3,3897.2,0.7684]
[1758847007945,0.2203,3897.3,3897.2,0.7684]
[1758847008153,0.76866488,3897.3,3897.2,0.7684]
[1758847008354,0.54836488,3897.3,3897.2,0.7684]
[1758847009149,0.76866488,3897.3,3897.2,0.7684]
[1758847009348,0.98856488,3897.3,3897.2,0.7684]
[1758847013250,0.2203,3897.1,3897.0,0.8949]
[1758847013559,0.76866488,3897.1,3897.0,0.8949]
[1758847014157,0.54836488,3897.1,3897.0,0.8949]
[1758847014356,0.46157,3897.4,3897.3,0.7684]
[1758847014557,1.23236255,3897.4,3897.3,0.7684]
[1758847014758,1.79356255,3897.4,3897.3,0.7684]
[1758847015455,1.79356255,3897.4,3897.0,0.1265]
[1758847015456,1.2431,3897.2,3897.1,0.5443]
[1758847015655,1.79359255,3897.2,3897.1,0.7684]
[1758847015852,0.77079255,3897.2,3897.1,0.7684]
[1758847016050,0.55049255,3897.2,3897.1,0.7684]
[1758847017057,0.77079255,3897.2,3897.1,0.7684]
[1758847017258,0.77079255,3897.2,3897.1,1.0334]
[1758847017455,0.55049255,3897.2,3897.1,1.0334]
[1758847017656,0.55049255,3897.2,3897.1,6.0334]
[1758847018361,0.022,3897.9,3897.8,0.7684]
[1758847018563,0.2423,3897.9,3897.8,0.7684]
[1758847018958,0.022,3897.9,3897.8,0.7684]
[1758847019556,0.8035,3897.9,3897.8,0.5443]
[1758847019761,1.24304,3897.6,3897.2,0.148]
[1758847020060,1.24304,3897.6,3897.4,0.5598]
[1758847020061,0.7815,3897.5,3897.4,0.5598]
[1758847020865,0.46154,3897.6,3897.5,0.5625]
[1758847021066,0.69942,3897.9,3897.8,0.2141]
[1758847021268,0.022,3897.9,3897.8,0.7696]
[1758847021766,0.022,3897.9,3897.8,5.7696]
[1758847021968,0.0136,3898.5,3898.0,0.1318]
[1758847022163,0.0136,3898.5,3898.4,0.7696]
[1758847022567,2.52139735,3899.0,3898.9,0.2141]
[1758847022867,2.52139735,3899.0,3898.2,0.2141]
[1758847022868,0.46146,3898.3,3898.2,0.2141]
[1758847023065,1.22676,3898.3,3898.2,0.2141]
[1758847023373,1.22679,3898.1,3898.0,0.553]
[1758847023567,0.7653,3898.1,3898.0,0.7696]
[1758847023863,0.1314,3898.5,3897.0,0.1265]
[1758847023864,0.7787,3897.7,3897.6,0.7841]
[1758847024068,0.7787,3897.7,3897.6,0.2334]
[1758847024365,0.7787,3897.7,3897.3,0.265]
[1758847024366,0.2257,3897.4,3897.3,1.0491]
[1758847024572,0.5495,3897.4,3897.3,1.0491]
[1758847024767,0.2257,3897.4,3897.3,1.0491]
[1758847025071,0.78534,3897.7,3897.3,0.7131]
[1758847025373,1.24024,3897.7,3897.6,0.5694]
[1758847026475,1.24024,3897.7,3897.6,0.2334]
[1758847026672,0.7787,3897.7,3897.6,0.5694]
[1758847026873,0.7787,3897.7,3897.6,0.7841]
[1758847027172,0.68719,3898.1,3898.0,0.9192]
[1758847027377,0.2257,3898.1,3898.0,0.9192]
[1758847028273,0.46148,3898.2,3898.0,0.9192]
[1758847028575,0.91638,3898.2,3898.1,0.7841]
[1758847028772,0.2257,3898.2,3898.1,0.7841]
[1758847029170,0.0087,3898.3,3898.2,0.336]
[1758847029370,0.0087,3898.3,3898.2,0.7841]
[1758847029570,0.4549,3898.1,3898.0,0.336]
[1758847029775,0.7787,3898.1,3898.0,0.5694]
[1758847030369,1.55880397,3898.1,3898.0,0.7841]
[1758847030571,0.78010397,3898.1,3898.0,0.9192]
[1758847030772,0.78010397,3898.1,3898.0,5.9192]
[1758847031674,0.46137,3899.1,3899.0,0.5832]
[1758847031878,0.99131695,3899.1,3899.0,0.9192]
[1758847032080,0.52994695,3899.1,3899.0,0.9192]
[1758847033071,0.7787,3898.7,3898.6,0.2334]
[1758847033277,0.2257,3898.1,3898.0,0.9192]
[1758847033473,1.24014,3898.5,3898.4,0.2334]
[1758847033672,1.30850989,3898.5,3898.4,0.7841]
[1758847033881,1.43580989,3898.5,3898.4,0.2334]
[1758847034076,0.2257,3897.7,3897.6,0.2334]
[1758847034269,0.3238,3898.7,3898.4,0.336]
[1758847034469,0.2257,3898.2,3898.1,0.336]
[1758847034670,0.7787,3898.2,3898.1,0.7841]
[1758847034870,1.30857385,3898.2,3898.1,0.7841]
[1758847035381,0.52987385,3898.2,3898.1,0.7841]
[1758847035671,0.1273,3899.0,3898.9,0.5694]
[1758847035672,1.24009,3899.0,3898.9,0.5694]
[1758847035877,1.76322918,3899.0,3898.9,0.5694]
[1758847036379,1.30183918,3899.0,3898.9,0.7841]
[1758847036976,1.30183918,3899.0,3898.2,0.336]
[1758847036977,1.42913918,3899.0,3898.2,0.336]
[1758847037274,0.46143,3898.6,3898.0,0.4711]
[1758847037474,0.2257,3898.2,3898.1,0.6731]
[1758847037869,0.7787,3898.2,3898.1,0.6731]
[1758847038079,1.30180808,3898.2,3898.1,0.6731]
[1758847038474,1.30180808,3898.2,3897.9,0.336]
[1758847038674,1.30180808,3898.2,3897.0,0.1351]
[1758847038675,0.5495,3897.6,3897.5,0.9192]
[1758847038881,0.5495,3897.6,3897.5,1.1452]
[1758847039073,0.2257,3897.6,3897.5,1.1452]
[1758847039272,0.7787,3898.2,3898.1,0.7841]
[1758847039473,1.30195802,3898.2,3898.1,0.2334]
[1758847039674,0.2257,3897.8,3897.7,0.7841]
[1758847039976,0.5495,3898.2,3898.1,0.4481]
[1758847040279,0.0086,3898.7,3898.1,0.4481]
[1758847040580,0.0086,3898.7,3897.6,0.336]
[1758847040581,0.7787,3898.3,3897.6,0.336]
[1758847040779,0.2257,3898.2,3898.1,0.2334]
[1758847041083,0.2257,3898.2,3898.1,0.4481]
[1758847041478,0.2257,3898.2,3898.1,0.2334]
[1758847041479,1.30203985,3898.2,3898.1,0.2334]
[1758847041675,1.30203985,3898.2,3897.7,0.601]
[1758847041676,1.43972985,3898.2,3897.7,0.336]
[1758847041882,0.2257,3897.9,3897.8,0.9891]
[1758847042679,0.4549,3897.9,3897.8,0.7841]
[1758847042877,0.4549,3897.9,3897.8,0.207]
[1758847042878,1.76373508,3897.9,3897.8,0.207]
[1758847043382,1.30221508,3897.9,3897.8,0.9911]
[1758847044879,0.0086,3898.7,3898.5,0.2334]
[1758847044880,0.3238,3898.6,3898.5,0.2334]
[1758847045080,0.97866682,3898.6,3898.5,0.7841]
[1758847045281,0.97866682,3898.6,3898.5,0.9192]
[1758847045481,1.76389682,3898.6,3898.5,0.9192]
[1758847045679,1.76389682,3898.6,3898.5,0.7841]
[1758847045881,1.30246682,3898.6,3898.5,0.7841]
[1758847046285,0.97866682,3898.6,3898.5,0.7841]
[1758847046486,0.97866682,3898.6,3898.5,1.0491]
[1758847046788,0.97866682,3898.6,3898.5,1.1842]
[1758847046983,0.97866682,3898.6,3898.2,0.601]
[1758847047289,0.4549,3898.3,3898.2,1.0491]
[1758847047587,0.97866682,3898.3,3898.2,1.0491]
[1758847047776,1.30246682,3898.3,3898.0,0.1351]
[1758847048093,0.7787,3897.7,3897.6,0.7374]
[1758847048383,1.01095,3898.5,3898.4,0.2147]
[1758847048588,1.01095,3898.5,3897.8,0.46152]
[1758847048589,0.7787,3897.7,3897.6,0.2334]
[1758847048790,0.7787,3897.7,3897.6,0.4984]
[1758847048978,0.7787,3897.7,3896.5,0.1351]
[1758847049183,0.7787,3897.5,3897.4,0.5694]
[1758847049879,0.5888,3898.0,3897.5,0.336]
[1758847049880,0.3238,3897.9,3897.5,0.336]
[1758847050088,0.3238,3897.9,3897.8,0.7712]
[1758847050089,0.5495,3897.9,3897.8,0.7712]
[1758847050276,0.58874,3898.5,3897.8,0.7712]
[1758847050481,0.52433717,3898.4,3898.3,0.7563]
[1758847050690,0.0086,3898.7,3898.3,1.48275]
[1758847050883,0.0086,3898.7,3898.5,0.8876]
[1758847050884,0.52425446,3898.6,3898.5,0.8876]
[1758847051092,0.0086,3898.7,3898.6,1.21773]
[1758847051490,0.7883,3898.7,3898.6,0.7563]
[1758847051792,1.24972,3898.7,3898.6,0.265]
[1758847051993,1.24972,3898.7,3898.6,0.4818]
[1758847052199,1.77389754,3898.7,3898.6,0.265]
[1758847052692,0.76267754,3898.7,3898.6,1.0213]
[1758847052888,0.0086,3898.7,3898.6,1.0213]
[1758847053083,0.2385,3898.7,3898.6,1.0213]
[1758847053288,0.7883,3898.7,3898.6,0.265]
[1758847054289,1.31239725,3898.7,3898.6,0.265]
[1758847054687,0.7797,3898.4,3898.3,0.265]
[1758847055088,0.7797,3898.4,3898.3,0.4818]
[1758847055289,0.3263,3898.7,3898.2,0.46147]
[1758847055500,0.4706,3898.7,3898.3,0.265]
[1758847055792,0.7797,3898.4,3898.3,0.4818]
[1758847056089,0.7797,3898.4,3897.7,0.5399]
[1758847056090,0.2321,3897.8,3897.7,0.5399]
[1758847056291,0.7797,3897.8,3897.7,0.5399]
[1758847056489,0.7797,3897.8,3897.7,1.0213]
[1758847057889,0.46157,3897.5,3897.1,0.3231]
[1758847058190,0.7797,3897.2,3897.1,0.5399]
[1758847058497,0.7797,3897.2,3897.1,0.8049]
[1758847059988,0.2299,3896.7,3896.6,0.4332]
[1758847060187,0.7797,3896.7,3896.6,0.3231]
[1758847060388,0.2299,3896.4,3896.3,0.265]
[1758847060589,0.7797,3896.4,3896.3,0.265]
[1758847061296,0.7797,3896.4,3895.0,1.92796459]
[1758847061297,0.7797,3895.8,3895.7,0.2168]
[1758847061495,0.7797,3895.8,3895.3,0.3231]
[1758847061789,0.462,3895.5,3895.0,0.59314]
[1758847061993,0.7797,3895.4,3895.3,0.2168]
[1758847062191,0.7797,3895.4,3895.0,0.3231]
[1758847062192,0.3177,3895.3,3895.0,0.3231]
[1758847062394,0.1317,3895.5,3894.9,0.265]
[1758847062395,0.3177,3895.1,3894.9,0.265]
[1758847062594,0.46183,3895.2,3894.6,0.3231]
[1758847062787,0.3177,3895.4,3894.5,0.1313]
[1758847062988,0.3177,3895.4,3894.6,0.164]
[1758847063188,0.46186,3895.0,3894.6,0.164]
[1758847063492,0.1317,3895.0,3894.6,0.164]
[1758847063694,0.3177,3894.9,3894.6,0.164]
[1758847063997,0.3177,3894.9,3894.3,0.3231]
[1758847063998,0.3177,3894.9,3894.3,0.5881]
[1758847064297,0.3177,3895.4,3894.7,0.3231]
[1758847064487,0.3177,3895.4,3895.0,0.59314]
[1758847064691,0.3177,3895.9,3895.2,0.3231]
[1758847064892,0.59344,3896.0,3895.0,0.198]
[1758847064893,0.46177,3895.8,3895.0,0.198]
[1758847065087,2.40308285,3896.0,3895.0,0.198]
[1758847065088,0.77948,3895.7,3895.0,0.198]
[1758847065389,0.3177,3895.9,3895.3,0.3231]
[1758847065795,0.46177,3895.8,3895.0,0.3293]
[1758847065997,0.77948,3895.7,3895.0,0.198]
[1758847066399,0.1317,3896.0,3894.7,0.265]
[1758847066400,0.3177,3895.9,3894.7,0.265]
[1758847066800,0.3177,3895.7,3894.9,0.46185]
[1758847067000,0.3177,3895.8,3894.9,0.46185]
[1758847067199,0.46181,3895.4,3894.8,0.3231]
[1758847067401,0.46181,3895.4,3894.7,0.265]
[1758847067402,0.3177,3895.3,3894.7,0.265]
[1758847067700,0.3177,3895.3,3894.5,0.4619]
[1758847067896,0.3177,3895.3,3894.4,0.3231]
[1758847067897,0.77953,3895.3,3894.4,0.3231]
[1758847068092,0.3177,3895.2,3894.5,0.6459]
[1758847068393,0.3177,3895.1,3894.5,0.184]
[1758847068596,0.3177,3894.9,3894.5,0.265]
[1758847069293,0.3177,3894.9,3894.0,0.59327]
[1758847069294,0.46189,3894.8,3894.0,0.59327]
[1758847069497,0.3177,3894.7,3894.1,0.265]
[1758847069695,0.3177,3894.9,3894.2,0.3231]
[1758847070099,0.1317,3895.5,3894.5,0.1313]
[1758847070289,0.1317,3895.5,3894.2,0.3231]
[1758847070290,0.3177,3895.4,3894.2,0.46195]
[1758847070493,0.3177,3894.9,3894.3,0.3231]
[1758847070907,0.3177,3894.4,3893.4,0.3231]
[1758847071100,0.3177,3893.9,3893.4,0.3231]
[1758847071296,0.46201,3893.7,3893.0,0.4544]
[1758847071496,0.3177,3893.4,3893.0,0.3231]
[1758847071798,0.59373,3893.5,3892.9,0.13368812]
[1758847072004,0.3177,3893.3,3892.9,0.02568812]
[1758847072308,0.4494,3893.0,3892.9,0.02568812]
[1758847075906,0.4494,3893.5,3892.9,0.34878812]
[1758847076095,0.4494,3893.0,3892.9,0.02568812]
[1758847077003,0.3177,3893.0,3892.9,0.02568812]
[1758847077195,0.1317,3893.5,3892.9,0.02568812]
[1758847077698,0.46207,3893.2,3892.9,0.02568812]
[1758847077898,0.4494,3893.0,3892.9,0.02568812]
[1758847079800,5.91149,3893.0,3892.9,0.02568812]
[1758847080003,5.91149,3893.0,3891.2,0.80919]
[1758847080004,0.77989,3892.2,3891.2,0.80919]
[1758847080199,0.3412,3891.9,3891.1,0.3469]
[1758847080404,0.1313,3892.0,3891.0,40.1843]
[1758847080405,0.1313,3892.0,3891.2,0.267]
[1758847080600,0.3412,3891.9,3891.3,0.3469]
[1758847082204,0.3412,3891.9,3891.4,0.46228]
[1758847082402,0.4725,3892.0,3891.5,0.3469]
[1758847082706,0.4725,3892.0,3891.2,0.267]
[1758847082707,0.3412,3891.9,3891.3,0.3469]
[1758847083404,0.3412,3891.9,3891.3,0.80918]
[1758847083604,0.3412,3891.9,3891.7,0.3469]
[1758847083809,0.3412,3891.9,3891.2,0.267]
[1758847083810,0.3421,3892.8,3892.0,0.4675]
[1758847084109,0.1317,3893.0,3892.0,0.4675]
[1758847084110,0.3421,3892.6,3892.0,0.4675]
[1758847084306,0.1288,3892.5,3892.0,0.3348]
[1758847084505,0.3421,3892.3,3891.5,0.4675]
[1758847084703,0.3421,3892.4,3891.5,0.4638]
[1758847085007,0.46227,3891.6,3891.1,0.3348]
[1758847085308,0.1288,3891.5,3891.1,0.6018]
[1758847085503,0.1288,3891.5,3891.2,0.3348]
[1758847085698,0.3421,3891.3,3891.2,0.3348]
[1758847086010,0.46234,3890.9,3890.8,0.267]
[1758847086200,0.46234,3890.9,3890.8,0.6018]
[1758847086606,0.46234,3890.9,3890.8,0.3348]
[1758847086810,0.80444,3890.9,3890.8,0.3348]
[1758847087405,0.1288,3891.5,3890.8,0.3348]
[1758847087406,0.4623,3891.3,3890.8,0.3348]
[1758847087611,0.46231,3891.2,3891.0,0.1327]
[1758847087807,0.46231,3891.2,3891.1,0.3348]
[1758847088007,0.3421,3891.4,3890.6,0.3348]
[1758847088207,0.80446,3890.8,3890.7,0.3348]
[1758847088406,0.46236,3890.8,3890.6,0.267]
[1758847088608,0.3421,3890.7,3890.6,0.267]
[1758847089308,0.3421,3890.7,3890.6,0.6018]
[1758847089706,0.46236,3890.8,3890.7,0.3348]
[1758847090113,0.0257,3890.9,3890.7,0.3348]
[1758847090309,0.0257,3890.9,3890.6,0.267]
[1758847090509,0.48805,3890.9,3890.7,0.3348]
[1758847090704,0.0257,3890.9,3890.8,0.2278]
[1758847090910,0.0257,3890.9,3890.8,0.781]
[1758847092513,0.0257,3890.9,3890.8,1.048]
[1758847096118,0.46219,3892.2,3891.7,0.4462]
[1758847096320,0.7966,3892.3,3891.4,0.3348]
[1758847096515,0.1288,3892.5,3891.4,0.5626]
[1758847096516,0.4545,3891.5,3891.4,0.5626]
[1758847096721,0.7966,3891.5,3891.4,0.3448]
[1758847097020,1.34346162,3891.5,3891.4,0.3448]
[1758847097217,1.34346162,3891.5,3891.4,0.5626]
[1758847097416,0.54686162,3891.5,3891.3,0.4844]
[1758847097619,0.7966,3891.9,3891.8,0.2278]
[1758847097823,1.00179696,3891.9,3891.8,0.2278]
[1758847098524,1.34389696,3891.9,3891.8,0.2278]
[1758847098925,0.54729696,3891.9,3891.8,0.4462]
[1758847099124,0.227,3891.4,3891.3,0.4462]
[1758847099420,1.34389696,3891.4,3891.3,0.2278]
[1758847099627,1.34389696,3891.4,3890.3,42.85205971]
[1758847099831,0.7966,3891.2,3891.1,0.4248]
[1758847100019,1.34389696,3891.2,3890.8,0.3348]
[1758847100331,1.34389696,3891.1,3891.0,0.267]
[1758847100526,1.11689696,3891.1,3890.4,0.3348]
[1758847100728,0.5691,3890.8,3890.7,1.24336]
[1758847100918,1.11639696,3890.8,3890.7,1.24336]
[1758847101525,0.54729696,3890.8,3890.7,1.24336]
[1758847103131,0.54729696,3890.8,3890.7,1.50936]
[1758847105132,0.54729696,3890.8,3890.7,1.24336]
[1758847105433,0.54729696,3890.8,3890.7,1.50936]
[1758847107534,1.34389696,3890.8,3890.7,0.4938]
[1758847108138,0.7966,3890.8,3890.7,0.4938]
[1758847108527,0.7966,3890.6,3890.5,9.49e-06]
[1758847108726,0.2275,3890.0,3889.9,0.91018599]
[1758847108925,0.4545,3889.7,3889.3,0.3348]
[1758847109132,1.09419972,3889.6,3889.5,0.2278]
[1758847109330,1.09419972,3889.6,3888.5,0.1327]
[1758847109331,0.227,3889.3,3889.2,1.24353]
[1758847109529,0.52459972,3889.4,3889.2,1.16073]
[1758847109730,0.52459972,3889.3,3889.2,1.16073]
[1758847110029,0.3421,3889.9,3889.8,0.3352]
[1758847110227,1.08209986,3889.9,3889.8,1.0639]
[1758847110637,0.52459986,3889.9,3889.8,1.0639]
[1758847111340,0.7629,3890.3,3890.2,0.23]
[1758847111536,1.28728176,3890.3,3890.2,0.23]
[1758847112331,0.52438176,3890.3,3890.2,0.7969]
[1758847112535,1.35404,3891.0,3890.9,0.23]
[1758847112738,1.87830311,3891.0,3890.9,0.23]
[1758847113238,1.87830311,3891.0,3890.0,0.1327]
[1758847113239,0.5452,3890.1,3890.0,1.25935]
[1758847113439,0.5452,3890.1,3890.0,1.49235]
[1758847113641,0.7629,3890.1,3890.0,0.7287]
[1758847113944,0.7629,3889.9,3889.8,0.23]
[1758847114137,0.7629,3889.9,3889.8,0.497]
[1758847114839,0.7629,3889.9,3889.8,0.7287]
[1758847115233,0.7629,3889.9,3889.8,1.0639]
[1758847115538,0.5452,3889.9,3889.8,1.0639]
[1758847115736,0.3298,3890.9,3890.2,0.4617]
[1758847115933,0.1288,3891.0,3890.3,0.267]
[1758847115934,0.5475,3890.7,3890.3,0.267]
[1758847116139,0.7629,3890.1,3890.0,0.69244]
[1758847116339,0.7629,3890.1,3890.0,0.95944]
[1758847118245,0.7629,3890.1,3890.0,1.52634]
[1758847118428,0.1356,3890.5,3890.0,1.52634]
[1758847118429,0.8985,3890.5,3890.4,0.9241]
[1758847118628,1.42286941,3890.5,3890.4,0.4617]
[1758847118834,0.52436941,3890.5,3890.4,0.7969]
[1758847119034,0.674,3891.0,3890.9,0.4617]
[1758847119238,1.41603292,3891.0,3890.9,0.267]
[1758847119439,0.3298,3890.3,3889.5,2.90485971]
[1758847119638,0.4331,3890.4,3889.8,0.3352]
[1758847119639,0.3298,3890.4,3889.8,0.3352]
[1758847120137,0.1356,3890.5,3890.4,0.4624]
[1758847120339,0.3298,3890.7,3890.4,1.1911]
[1758847120654,1.0784894,3890.6,3890.5,1.0639]
[1758847120840,1.5408594,3890.6,3890.5,0.7969]
[1758847121135,1.5408594,3890.6,3890.1,0.3352]
[1758847121136,0.46241,3890.3,3890.1,0.3352]
[1758847121341,0.1356,3890.5,3889.5,2.90485971]
[1758847121342,0.1356,3890.5,3889.5,0.5652]
[1758847121530,0.2154,3889.6,3889.5,0.5652]
[1758847121735,0.46248,3889.8,3889.5,0.7287]
[1758847121937,0.3298,3889.7,3889.6,0.7969]
[1758847122144,0.7629,3889.7,3889.6,0.497]
[1758847122436,1.30311564,3889.7,3889.6,0.267]
[1758847123040,0.3298,3890.2,3889.6,1.19119]
[1758847123233,0.1356,3890.5,3890.2,0.46242]
[1758847123435,0.2154,3890.9,3890.8,0.23]
[1758847123741,1.30285004,3890.9,3890.8,0.267]
[1758847124047,1.30285004,3890.9,3889.8,0.3352]
[1758847124048,0.5452,3889.9,3889.8,0.23]
[1758847124235,0.5452,3889.9,3889.8,0.5657]
[1758847124432,0.3298,3890.4,3890.0,0.3352]
[1758847124638,0.1356,3890.5,3890.0,0.7969]
[1758847124639,0.5452,3890.1,3890.0,0.7969]
[1758847125739,0.1356,3890.0,3889.4,0.3352]
[1758847125942,0.1356,3890.0,3889.9,0.23]
[1758847125943,0.8985,3890.0,3889.9,0.23]
[1758847126142,0.8985,3890.0,3889.9,0.4617]
[1758847127242,0.8985,3890.0,3889.2,40.092]
[1758847127243,0.8985,3890.0,3889.2,0.3352]
[1758847127543,0.79226,3889.9,3889.3,0.72952]
[1758847128145,0.79226,3889.9,3889.4,0.46251]
[1758847128441,0.7629,3889.8,3889.7,0.23]
[1758847129845,0.3298,3890.2,3889.9,0.46245]
[1758847130036,0.5452,3890.2,3890.1,0.23]
[1758847130346,0.7629,3890.2,3890.1,0.23]
[1758847130543,0.7629,3890.2,3890.1,0.7969]
[1758847130847,0.5452,3890.2,3890.1,0.7969]
[1758847132346,0.7629,3890.2,3890.1,0.496]
[1758847132545,0.7629,3890.2,3890.1,0.7277]
[1758847132750,0.5452,3890.2,3890.1,1.0629]
[1758847133148,0.7629,3890.2,3890.1,1.0629]
[1758847133348,0.7629,3890.2,3890.1,0.7277]
[1758847133645,0.7629,3890.2,3890.1,0.4617]
[1758847133850,0.7629,3890.2,3890.1,0.7277]
[1758847135154,0.5452,3890.2,3890.1,1.0629]
[1758847135646,0.2154,3890.2,3890.1,1.0629]
[1758847135843,0.4911,3890.5,3890.4,0.7969]
[1758847135844,0.0257,3890.5,3890.4,0.7969]
[1758847136252,0.5452,3890.6,3890.5,0.7969]
[1758847137546,0.3298,3891.1,3890.7,0.46235]
[1758847137752,0.5452,3891.1,3891.0,0.7969]
[1758847137939,1.07181877,3891.1,3891.0,0.7969]
[1758847138348,0.5452,3891.1,3891.0,0.7969]
[1758847139148,0.1356,3892.0,3891.3,0.4617]
[1758847139149,0.3298,3891.4,3891.3,0.4617]
[1758847139454,0.5452,3891.7,3891.6,0.7969]
[1758847139950,0.3298,3891.9,3891.8,0.7969]
[1758847140153,0.3298,3891.9,3891.8,1.0629]
[1758847140349,0.0256,3892.1,3891.9,0.3463]
[1758847140554,0.0256,3892.1,3892.0,0.7836]
[1758847140555,0.5715,3892.1,3892.0,0.7836]